bitfinex-derivatives/quotes_SOLF0:USTF0_20250110
["timestamp","ask_amount","ask_price","bid_price","bid_amount"]
[1736523899581,2.6669,187.53,187.46,3.1443]
[1736523899789,31.94335061,187.59,187.46,3.1443]
[1736523900483,31.94335061,187.59,187.46,1.656]
[1736523900788,1.6608,187.61,187.49,31.94335061]
[1736523900984,1.6608,187.61,187.5,1.4881]
[1736523901283,1.6608,187.61,187.46,1.656]
[1736523901284,21.32976991,187.61,187.46,1.656]
[1736523902286,2.6665,187.56,187.53,2.6668]
[1736523902490,21.32976991,187.61,187.46,1.656]
[1736523903085,19.66896991,187.58,187.44,1.4881]
[1736523903280,19.66896991,187.55,187.41,19.66896991]
[1736523903589,19.66896991,187.55,187.46,2.6678]
[1736523903992,19.66896991,187.55,187.39,3.1738]
[1736523904185,19.66896991,187.52,187.39,3.1738]
[1736523904491,2.6678,187.47,187.41,2.6684]
[1736523904688,3.1437,187.51,187.35,19.66896991]
[1736523904887,19.66896991,187.49,187.35,19.66896991]
[1736523905085,19.66896991,187.49,187.38,2.669]
[1736523905681,19.66896991,187.49,187.32,25.84896991]
[1736523906287,19.66896991,187.49,187.32,19.66896991]
[1736523906490,19.66896991,187.46,187.32,19.66896991]
[1736523906787,19.66896991,187.43,187.29,19.66896991]
[1736523907184,19.66896991,187.43,187.27,13.5212413]
[1736523907596,19.66896991,187.4,187.27,7.3612413]
[1736523907787,19.66896991,187.37,187.27,7.3612413]
[1736523907991,19.66896991,187.34,187.27,7.3612413]
[1736523908187,19.66896991,187.34,187.2,7.3612413]
[1736523908595,1.5673,187.36,187.22,19.66896991]
[1736523908795,3.1889,187.39,187.25,19.66896991]
[1736523908985,1.6509,187.39,187.28,19.66896991]
[1736523909190,4.3002,187.42,187.36,2.6691]
[1736523909388,1.6316,187.42,187.28,19.66896991]
[1736523910098,1.6316,187.42,187.27,1.6052]
[1736523910099,19.66896991,187.4,187.22,19.66896991]
[1736523910292,2.6695,187.35,187.22,19.66896991]
[1736523910595,2.6695,187.35,187.25,19.66896991]
[1736523910887,2.6692,187.37,187.22,19.66896991]
[1736523911094,1.6316,187.42,187.26,19.66896991]
[1736523911294,1.6316,187.42,187.3,2.67]
[1736523911488,1.6316,187.42,187.26,19.66896991]
[1736523912099,2.6691,187.37,187.32,2.6698]
[1736523912298,2.6691,187.37,187.22,19.66896991]
[1736523912299,19.66896991,187.4,187.22,19.66896991]
[1736523914092,2.6696,187.34,187.29,2.6702]
[1736523914591,2.6699,187.32,187.22,19.66896991]
[1736523914800,19.66896991,187.37,187.22,19.66896991]
[1736523914997,3.1885,187.36,187.22,19.66896991]
[1736523915388,3.1885,187.36,187.2,1.5349]
[1736523915899,19.66896991,187.34,187.23,2.671]
[1736523916092,1.6264,187.33,187.19,5.99735558]
[1736523916291,2.6704,187.29,187.25,2.6708]
[1736523916493,1.6264,187.33,187.19,25.66632549]
[1736523917007,2.6703,187.29,187.23,2.6711]
[1736523917292,1.6264,187.33,187.19,25.66632549]
[1736523917493,3.1885,187.36,187.22,19.66896991]
[1736523917693,3.1885,187.36,187.25,19.66896991]
[1736523919092,2.6696,187.34,187.29,2.6701]
[1736523919293,19.66896991,187.44,187.28,19.66896991]
[1736523919494,3.2554,187.45,187.28,19.66896991]
[1736523919689,2.6691,187.38,187.28,19.66896991]
[1736523919899,19.66896991,187.42,187.25,19.66896991]
[1736523920297,2.6693,187.36,187.31,2.6699]
[1736523920597,19.66896991,187.42,187.31,2.6699]
[1736523920794,19.66896991,187.42,187.34,2.6695]
[1736523920992,3.2554,187.45,187.31,19.66896991]
[1736523921595,2.6684,187.43,187.35,2.6694]
[1736523921789,22.92436991,187.45,187.28,19.66896991]
[1736523922401,2.6687,187.4,187.28,19.66896991]
[1736523922596,22.92436991,187.45,187.31,19.66896991]
[1736523923076,2.6685,187.42,187.37,2.6691]
[1736523923197,22.92436991,187.45,187.31,19.66896991]
[1736523923408,22.92436991,187.45,187.28,19.66896991]
[1736523923998,22.92436991,187.45,187.31,19.66896991]
[1736523924199,2.6692,187.37,187.33,2.6696]
[1736523924396,19.66896991,187.42,187.25,19.66896991]
[1736523925034,3.2554,187.45,187.28,19.66896991]
[1736523925396,2.6689,187.39,187.28,19.66896991]
[1736523925606,3.2554,187.45,187.28,19.66896991]
[1736523925794,5.9234,187.45,187.41,2.6686]
[1736523925993,1.6472,187.45,187.33,6.16]
[1736523926203,19.66896991,187.53,187.37,19.66896991]
[1736523926394,2.6669,187.53,187.49,2.6674]
[1736523926602,1.5497,187.6,187.46,19.66896991]
[1736523927601,2.6666,187.55,187.49,2.6673]
[1736523927868,2.6666,187.55,187.43,19.66896991]
[1736523928012,19.66896991,187.59,187.43,19.66896991]
[1736523928210,19.66896991,187.56,187.4,19.66896991]
[1736523928700,19.66896991,187.59,187.4,19.66896991]
[1736523928904,19.66896991,187.59,187.43,19.66896991]
[1736523929202,3.0325,187.61,187.49,19.66896991]
[1736523929397,1.525,187.61,187.49,19.66896991]
[1736523930003,2.6661,187.59,187.54,2.6667]
[1736523930206,1.525,187.61,187.49,19.66896991]
[1736523930421,1.525,187.61,187.54,2.6667]
[1736523930605,1.525,187.61,187.49,19.66896991]
[1736523930910,2.6661,187.59,187.54,2.6667]
[1736523931109,1.525,187.61,187.49,19.66896991]
[1736523931305,1.525,187.61,187.47,6.16]
[1736523931698,19.66896991,187.59,187.47,6.16]
[1736523932014,19.66896991,187.59,187.44,1.5836]
[1736523932508,2.667,187.52,187.46,2.6677]
[1736523932706,19.66896991,187.56,187.41,7.7441]
[1736523933107,2.6669,187.53,187.45,2.6679]
[1736523933309,19.66896991,187.56,187.41,7.7441]
[1736523933604,2.45486397,187.55,187.41,1.6041]
[1736523933808,1.597,187.55,187.41,1.6041]
[1736523934416,1.597,187.55,187.5,2.6673]
[1736523934716,1.597,187.55,187.41,1.6041]
[1736523935106,1.5137,187.6,187.46,19.66896991]
[1736523935311,2.6662,187.58,187.53,2.6667]
[1736523935624,1.5137,187.6,187.46,19.66896991]
[1736523936211,2.6666,187.55,187.46,19.66896991]
[1736523936537,19.66896991,187.59,187.43,19.66896991]
[1736523936725,2.6668,187.54,187.41,1.6041]
[1736523936935,19.66896991,187.59,187.43,19.66896991]
[1736523937513,19.66896991,187.56,187.41,1.6041]
[1736523937826,1.5137,187.6,187.43,19.66896991]
[1736523938023,2.6665,187.56,187.51,2.6671]
[1736523938223,2.6665,187.56,187.43,19.66896991]
[1736523938224,1.5137,187.6,187.46,19.66896991]
[1736523938522,2.6667,187.55,187.5,2.6673]
[1736523938719,19.66896991,187.59,187.43,19.66896991]
[1736523939118,19.66896991,187.59,187.47,2.6677]
[1736523939318,0.85772708,187.58,187.41,1.6041]
[1736523939522,1.5137,187.6,187.46,19.66896991]
[1736523939719,1.5137,187.6,187.49,19.66896991]
[1736523939926,2.666,187.59,187.49,19.66896991]
[1736523940320,3.122,187.61,187.49,19.66896991]
[1736523940321,1.525,187.61,187.49,19.66896991]
[1736523940519,19.66896991,187.69,187.53,19.66896991]
[1736523940721,11.0549,187.73,187.56,19.66896991]
[1736523940956,0.85726003,187.68,187.56,19.66896991]
[1736523941225,2.6652,187.65,187.59,2.666]
[1736523941812,19.66896991,187.71,187.56,19.66896991]
[1736523942022,0.85707798,187.7,187.56,19.66896991]
[1736523942427,0.85707798,187.7,187.54,1.5789]
[1736523942622,0.85715301,187.69,187.54,1.5789]
[1736523942921,19.66896991,187.71,187.54,1.5789]
[1736523943125,19.66896991,187.68,187.54,1.5789]
[1736523943424,0.85727953,187.67,187.53,19.66896991]
[1736523943618,19.66896991,187.68,187.53,19.66896991]
[1736523943814,4.9549,187.73,187.59,19.66896991]
[1736523944018,0.85706271,187.72,187.59,19.66896991]
[1736523944215,4.9549,187.73,187.59,19.66896991]
[1736523944416,4.9549,187.73,187.62,19.66896991]
[1736523944622,2.6645,187.7,187.65,2.6651]
[1736523944823,1.6557,187.73,187.6,1.5755]
[1736523945229,2.6648,187.68,187.62,2.6656]
[1736523945625,2.6648,187.68,187.6,1.5755]
[1736523946022,2.665,187.67,187.6,1.5755]
[1736523946330,1.6557,187.73,187.6,1.5755]
[1736523947021,2.6647,187.69,187.64,2.6652]
[1736523947529,2.6647,187.68,187.64,2.6652]
[1736523947738,1.6557,187.73,187.61,2.6657]
[1736523947926,1.6557,187.73,187.6,1.5755]
[1736523949325,2.6648,187.68,187.6,1.5755]
[1736523949928,1.6557,187.73,187.56,19.66896991]
[1736523950128,19.66896991,187.71,187.56,19.66896991]
[1736523950317,1.6557,187.73,187.56,19.66896991]
[1736523951042,2.6645,187.7,187.65,2.6651]
[1736523951230,1.6557,187.73,187.56,19.66896991]
[1736523951430,1.6557,187.73,187.6,19.66896991]
[1736523951731,2.6642,187.73,187.68,2.6646]
[1736523952128,2.6642,187.72,187.68,2.6646]
[1736523952324,3.1439,187.77,187.66,2.6649]
[1736523952532,22.81286991,187.77,187.66,2.6649]
[1736523952723,2.6644,187.71,187.63,19.66896991]
[1736523952928,2.6644,187.71,187.66,2.6649]
[1736523953332,2.6644,187.71,187.63,19.66896991]
[1736523953534,22.81286991,187.77,187.63,19.66896991]
[1736523953732,3.1439,187.77,187.63,19.66896991]
[1736523954331,2.664,187.73,187.63,19.66896991]
[1736523954836,2.664,187.73,187.69,2.6646]
[1736523955239,19.66896991,187.75,187.61,1.5477]
[1736523955486,19.66896991,187.69,187.52,19.66896991]
[1736523955641,2.6656,187.62,187.52,19.66896991]
[1736523955836,7.5627,187.68,187.52,19.66896991]
[1736523956036,7.5627,187.68,187.59,2.6659]
[1736523956228,7.5627,187.68,187.5,23.34925204]
[1736523956229,2.6651,187.66,187.55,19.66896991]
[1736523956438,7.5627,187.68,187.52,19.66896991]
[1736523956710,7.5627,187.68,187.5,1.6045]
[1736523956843,19.66896991,187.64,187.5,1.6045]
[1736523957041,19.66896991,187.64,187.54,2.6667]
[1736523957237,19.66896991,187.64,187.5,1.6045]
[1736523957437,2.6661,187.59,187.5,1.6045]
[1736523957638,19.66896991,187.64,187.5,1.6045]
[1736523957848,2.6662,187.58,187.5,1.6045]
[1736523958836,19.66896991,187.64,187.54,2.6667]
[1736523959041,2.6658,187.61,187.5,1.6045]
[1736523959343,19.66896991,187.64,187.5,1.6045]
[1736523959529,19.66896991,187.64,187.53,2.6668]
[1736523960028,2.6663,187.57,187.5,1.6045]
[1736523960230,2.6663,187.57,187.52,2.667]
[1736523960546,2.6657,187.61,187.5,1.6045]
[1736523960737,2.6657,187.61,187.56,2.6663]
[1736523960934,19.66896991,187.64,187.56,2.6663]
[1736523961134,19.66896991,187.64,187.5,1.6045]
[1736523961442,19.66896991,187.59,187.43,60.1551778]
[1736523961635,2.6671,187.52,187.46,2.6677]
[1736523961873,19.66896991,187.56,187.43,89.14818052]
[1736523962241,2.6672,187.51,187.46,2.6678]
[1736523962435,25.68896991,187.56,187.43,89.14818052]
[1736523962642,25.68896991,187.56,187.43,60.1551778]
[1736523962838,2.6668,187.54,187.46,2.6677]
[1736523963039,25.68896991,187.56,187.43,60.1551778]
[1736523963287,19.66896991,187.53,187.43,60.1551778]
[1736523963545,2.6671,187.52,187.46,2.6678]
[1736523963842,1.621,187.57,187.43,79.82414771]
[1736523964140,6.02,187.64,187.49,19.66896991]
[1736523964443,19.66896991,187.67,187.52,19.66896991]
[1736523964635,2.6656,187.62,187.53,2.6668]
[1736523964841,19.66896991,187.67,187.49,19.66896991]
[1736523965135,2.6647,187.69,187.64,2.6653]
[1736523965337,1.5242,187.7,187.58,19.66896991]
[1736523965540,19.66896991,187.75,187.59,1.5575]
[1736523965736,19.66896991,187.75,187.69,2.6645]
[1736523965935,6.02,187.76,187.61,19.66896991]
[1736523967144,1.549,187.77,187.61,19.66896991]
[1736523967545,1.549,187.77,187.68,2.6644]
[1736523967841,1.549,187.77,187.61,19.66896991]
[1736523968039,1.549,187.77,187.59,1.5575]
[1736523968452,19.66896991,187.72,187.59,1.5575]
[1736523968940,2.6639,187.72,187.66,2.6647]
[1736523969246,19.66896991,187.75,187.59,1.5575]
[1736523969439,1.549,187.77,187.59,1.5575]
[1736523969743,1.549,187.77,187.63,19.66896991]
[1736523969961,1.549,187.77,187.64,6.02]
[1736523970340,19.66896991,187.75,187.59,1.5575]
[1736523970742,19.66896991,187.72,187.59,1.5575]
[1736523971051,19.66896991,187.75,187.61,19.66896991]
[1736523971251,1.549,187.77,187.64,19.66896991]
[1736523971453,3.1764,187.82,187.67,19.66896991]
[1736523972063,1.5264,187.86,187.73,19.66896991]
[1736523972240,1.5264,187.86,187.74,6.02]
[1736523972446,1.5264,187.86,187.77,2.6631]
[1736523972652,1.5264,187.86,187.74,7.6253]
[1736523973039,19.66896991,187.84,187.67,25.68896991]
[1736523973247,19.66896991,187.81,187.67,19.66896991]
[1736523973446,2.6631,187.78,187.72,2.6638]
[1736523973644,19.66896991,187.84,187.67,19.66896991]
[1736523974038,1.5264,187.86,187.67,19.66896991]
[1736523974245,1.5264,187.86,187.74,19.66896991]
[1736523974551,3.1682,187.9,187.77,19.66896991]
[1736523974945,2.6617,187.88,187.81,2.6625]
[1736523975359,22.83716991,187.9,187.75,1.5638]
[1736523975549,22.83716991,187.9,187.79,2.6629]
[1736523975550,2.6621,187.85,187.79,2.6629]
[1736523975748,31.86442493,187.89,187.75,1.5638]
[1736523975944,31.86442493,187.89,187.73,37.88442493]
[1736523976151,31.86442493,187.86,187.69,8.81205068]
[1736523976340,31.86442493,187.83,187.69,7.24825068]
[1736523976546,2.6629,187.8,187.74,2.6636]
[1736523976760,1.5894,187.82,187.68,31.86442493]
[1736523977047,2.6632,187.77,187.68,31.86442493]
[1736523977265,3.3031,187.81,187.65,33.42822493]
[1736523977648,2.6633,187.76,187.7,2.6641]
[1736523977949,31.86442493,187.8,187.65,33.42822493]
[1736523978150,31.86442493,187.8,187.68,2.6643]
[1736523978151,2.6637,187.74,187.68,2.6643]
[1736523978350,31.86442493,187.8,187.65,1.5638]
[1736523978745,2.6633,187.76,187.65,33.42822493]
[1736523978953,31.86442493,187.8,187.65,33.42822493]
[1736523979150,3.3031,187.81,187.65,33.42822493]
[1736523979352,3.3031,187.81,187.68,31.86442493]
[1736523979742,2.6632,187.78,187.72,2.6639]
[1736523979951,31.86442493,187.8,187.65,33.42822493]
[1736523980447,3.3031,187.81,187.68,31.86442493]
[1736523980662,3.3031,187.81,187.71,31.86442493]
[1736523980952,1.6545,187.81,187.71,31.86442493]
[1736523981152,2.6622,187.85,187.71,31.86442493]
[1736523981359,37.88442493,187.89,187.74,31.86442493]
[1736523982047,37.88442493,187.89,187.71,37.88442493]
[1736523982252,37.88442493,187.89,187.74,31.86442493]
[1736523982462,6.02,187.89,187.77,31.86442493]
[1736523982661,2.6618,187.87,187.8,2.6626]
[1736523982876,3.2541,187.9,187.77,31.86442493]
[1736523983866,2.6615,187.89,187.84,2.6622]
[1736523984567,3.2541,187.9,187.77,31.86442493]
[1736523984767,3.2541,187.9,187.75,1.542]
[1736523986160,31.86442493,187.89,187.75,1.542]
[1736523986357,2.6623,187.84,187.79,2.6629]
[1736523986557,3.2541,187.9,187.77,31.86442493]
[1736523986965,2.6615,187.89,187.77,31.86442493]
[1736523987257,1.6318,187.9,187.8,31.86442493]
[1736523987864,2.6611,187.92,187.85,2.6619]
[1736523988059,31.86442493,187.95,187.8,31.86442493]
[1736523988556,3.2164,187.96,187.75,1.542]
[1736523988557,31.86442493,187.9,187.75,1.542]
[1736523988764,31.86442493,187.93,187.77,31.86442493]
[1736523988961,2.6617,187.88,187.83,2.6623]
[1736523989258,31.86442493,187.87,187.71,31.86442493]
[1736523989561,2.6628,187.8,187.71,31.86442493]
[1736523989962,35.15362493,187.87,187.73,2.6637]
[1736523990155,31.86442493,187.84,187.68,39.38532493]
[1736523990352,6.0,187.86,187.71,31.86442493]
[1736523990575,2.6623,187.84,187.79,2.6629]
[1736523990752,6.0,187.86,187.74,31.86442493]
[1736523991163,8.6619,187.86,187.82,2.6624]
[1736523991473,8.6619,187.86,187.74,31.86442493]
[1736523991474,31.86442493,187.95,187.77,37.86442493]
[1736523991768,31.86442493,187.95,187.84,2.6621]
[1736523992059,31.86442493,187.95,187.78,1.5209]
[1736523992262,2.6613,187.91,187.8,31.86442493]
[1736523992456,31.86442493,187.95,187.8,31.86442493]
[1736523992657,31.86442493,187.95,187.78,1.5209]
[1736523992658,2.6608,187.94,187.9,2.6613]
[1736523992973,3.1931,187.96,187.81,6.0]
[1736523993163,3.1931,187.96,187.83,2.6622]
[1736523993164,2.6617,187.88,187.83,2.6622]
[1736523993463,31.86442493,187.91,187.74,37.86442493]
[1736523993659,2.6619,187.86,187.81,2.6625]
[1736523993862,2.6619,187.86,187.74,37.86442493]
[1736523994269,2.6622,187.85,187.8,2.6627]
[1736523994467,31.86442493,187.88,187.71,31.86442493]
[1736523994770,3.0549,187.87,187.71,31.86442493]
[1736523994964,31.86442493,187.85,187.69,1.6051]
[1736523995565,2.663,187.79,187.73,2.6636]
[1736523995759,2.663,187.79,187.69,1.6051]
[1736523996066,2.6628,187.8,187.75,2.6634]
[1736523996262,31.86442493,187.85,187.75,2.6634]
[1736523996461,31.86442493,187.82,187.65,31.86442493]
[1736523996866,2.6632,187.77,187.65,31.86442493]
[1736523997108,31.86442493,187.82,187.65,31.86442493]
[1736523997261,2.6636,187.74,187.69,2.6643]
[1736523997470,31.86442493,187.79,187.64,60.08937934]
[1736523997672,3.0584,187.78,187.64,60.08937934]
[1736523998458,2.6634,187.76,187.64,60.08937934]
[1736523998662,1.5384,187.78,187.68,31.86442493]
[1736523999074,1.5384,187.78,187.73,2.6637]
[1736523999368,1.5384,187.78,187.65,31.86442493]
[1736523999566,1.5384,187.78,187.72,2.6638]
[1736523999764,1.5384,187.78,187.65,31.86442493]
[1736524000166,1.5384,187.78,187.64,60.08937934]
[1736524000167,2.6636,187.74,187.69,2.6642]
[1736524000385,1.5384,187.78,187.65,31.86442493]
[1736524000667,2.6637,187.74,187.64,60.08937934]
[1736524000868,1.5384,187.78,187.64,60.08937934]
[1736524001061,1.5384,187.78,187.65,31.86442493]
[1736524001665,2.6633,187.77,187.73,2.6638]
[1736524001865,1.5384,187.78,187.68,31.86442493]
[1736524002073,1.5615,187.83,187.68,31.86442493]
[1736524002272,2.6632,187.78,187.73,2.6636]
[1736524002468,1.6556,187.82,187.68,31.86442493]
[1736524002677,1.6556,187.82,187.65,39.11267561]
[1736524003068,1.6556,187.82,187.7,31.86442493]
[1736524003473,4.3182,187.82,187.7,19.61459445]
[1736524003773,1.6556,187.82,187.7,19.61459445]
[1736524003972,1.6556,187.82,187.73,19.61459445]
[1736524004469,1.5392,187.84,187.8,2.6626]
[1736524004672,1.5209,187.88,187.73,19.61459445]
[1736524004984,1.5209,187.88,187.76,19.61459445]
[1736524005174,1.5209,187.88,187.79,19.61459445]
[1736524005367,1.6045,187.9,187.79,19.61459445]
[1736524005566,1.6045,187.9,187.82,2.6624]
[1736524005875,1.6045,187.9,187.79,19.61459445]
[1736524006274,4.2658,187.9,187.79,19.61459445]
[1736524006577,6.0,188.03,187.85,19.61459445]
[1736524006872,4.2264,188.0,187.88,19.61459445]
[1736524007072,1.5663,188.0,187.88,19.61459445]
[1736524007267,1.5663,188.0,187.88,31.81280369]
[1736524007569,2.6603,187.98,187.88,31.81280369]
[1736524007876,1.5663,188.0,187.86,1.6029]
[1736524008863,31.81280369,187.98,187.89,2.6615]
[1736524009070,31.81280369,187.98,187.83,31.81280369]
[1736524009467,1.5663,188.0,187.83,31.81280369]
[1736524009683,1.5663,188.0,187.89,31.81280369]
[1736524009872,4.2262,188.0,187.89,31.81280369]
[1736524010470,1.5663,188.0,187.89,31.81280369]
[1736524010673,6.0,188.06,187.83,31.81280369]
[1736524010674,31.81280369,188.07,187.92,31.81280369]
[1736524010874,4.6511,188.09,187.95,31.81280369]
[1736524011881,4.6511,188.09,187.92,31.81280369]
[1736524012374,2.6592,188.05,187.99,2.6599]
[1736524012574,4.6511,188.09,187.93,1.5238]
[1736524013280,31.81280369,188.07,187.93,1.5238]
[1736524013483,2.6597,188.02,187.97,2.6603]
[1736524013670,2.6597,188.02,187.84,28.99300272]
[1736524013671,31.81280369,188.01,187.86,31.81280369]
[1736524013876,1.6378,188.0,187.86,31.81280369]
[1736524014078,3.2449,188.0,187.86,31.81280369]
[1736524014272,4.8506,188.0,187.86,31.81280369]
[1736524014473,2.6605,187.97,187.86,31.81280369]
[1736524014680,4.8506,188.0,187.85,1.5803]
[1736524015182,2.6608,187.95,187.85,1.5803]
[1736524015481,2.6607,187.95,187.88,2.6615]
[1736524015677,2.6607,187.95,187.83,37.81280369]
[1736524015889,4.8506,188.0,187.86,31.81280369]
[1736524016186,4.8506,188.0,187.94,2.6606]
[1736524016685,2.6606,187.96,187.9,2.6613]
[1736524016995,2.6606,187.96,187.83,37.81280369]
[1736524017179,4.8506,188.0,187.9,2.6612]
[1736524017684,2.6602,187.99,187.83,37.81280369]
[1736524017885,2.6602,187.99,187.87,31.81280369]
[1736524018088,4.8506,188.0,187.87,31.81280369]
[1736524018283,2.6604,187.97,187.87,31.81280369]
[1736524018484,31.81280369,187.98,187.84,31.81280369]
[1736524018787,2.6608,187.95,187.9,2.6613]
[1736524018980,31.81280369,187.98,187.84,31.81280369]
[1736524019380,31.81280369,187.98,187.81,33.39310369]
[1736524019783,2.6616,187.88,187.83,2.6623]
[1736524020274,31.81280369,187.92,187.76,8.80035068]
[1736524020483,2.6621,187.85,187.76,8.80035068]
[1736524020790,1.6351,187.87,187.76,8.80035068]
[1736524020984,2.6619,187.86,187.76,8.80035068]
[1736524021290,1.6351,187.87,187.76,8.80035068]
[1736524021498,1.6351,187.87,187.76,1.5521]
[1736524022183,2.6615,187.89,187.81,2.6625]
[1736524022389,1.5505,187.9,187.76,1.5521]
[1736524022584,31.81280369,187.89,187.76,1.5521]
[1736524022786,31.81280369,187.89,187.8,2.6627]
[1736524022980,31.81280369,187.89,187.72,31.81280369]
[1736524023485,31.81280369,187.86,187.72,31.81280369]
[1736524023676,31.81280369,187.86,187.71,1.5907]
[1736524023878,6.0,187.85,187.71,1.5907]
[1736524024076,6.0,187.85,187.72,31.81280369]
[1736524024498,1.5505,187.9,187.75,31.81280369]
[1736524025097,31.81280369,187.88,187.72,31.81280369]
[1736524025588,2.6615,187.89,187.84,2.6621]
[1736524025889,1.5505,187.9,187.75,31.81280369]
[1736524026083,2.6619,187.86,187.81,2.6625]
[1736524026393,1.5505,187.9,187.75,31.81280369]
[1736524026881,2.6617,187.88,187.83,2.6622]
[1736524027082,2.6617,187.88,187.75,31.81280369]
[1736524027483,2.6617,187.88,187.84,2.6622]
[1736524027791,2.6615,187.89,187.84,2.6622]
[1736524028082,1.5505,187.9,187.74,37.81280369]
[1736524028591,1.5505,187.9,187.83,2.6623]
[1736524028782,4.2119,187.9,187.8,31.81280369]
[1736524028990,1.5505,187.9,187.8,31.81280369]
[1736524029187,6.0,187.97,187.8,31.81280369]
[1736524029391,3.0788,187.96,187.81,1.5403]
[1736524029791,2.661,187.93,187.83,31.81280369]
[1736524030089,3.0788,187.96,187.81,1.5403]
[1736524030583,3.0788,187.96,187.83,31.81280369]
[1736524031088,3.0788,187.96,187.86,31.81280369]
[1736524031280,1.5582,187.96,187.86,31.81280369]
[1736524031478,31.81280369,188.01,187.83,6.0]
[1736524031479,31.81280369,188.07,187.89,31.81280369]
[1736524031776,0.85528213,188.06,187.89,31.81280369]
[1736524031910,3.2195,188.09,187.95,31.81280369]
[1736524032203,0.85507699,188.08,187.92,37.81280369]
[1736524032592,3.2195,188.09,187.92,37.81280369]
[1736524032788,33.37130369,188.1,187.95,31.81280369]
[1736524032990,2.6588,188.08,187.99,2.66]
[1736524033203,33.37130369,188.1,187.95,31.81280369]
[1736524033485,33.37130369,188.1,188.03,2.6594]
[1736524033486,2.6587,188.09,188.03,2.6594]
[1736524033682,33.37130369,188.1,187.92,37.81280369]
[1736524033890,31.81280369,188.07,187.92,37.81280369]
[1736524034088,31.81280369,188.07,187.99,2.66]
[1736524034283,31.81280369,188.07,187.9,1.5353]
[1736524034284,31.81280369,188.01,187.9,1.5353]
[1736524035587,1.5559,188.06,187.9,1.5353]
[1736524035802,31.81280369,188.07,187.92,31.81280369]
[1736524036401,34.47170369,188.07,187.96,2.6604]
[1736524036698,31.81280369,188.07,187.92,31.81280369]
[1736524036912,2.6591,188.06,188.01,2.6597]
[1736524037103,2.6591,188.06,187.92,31.81280369]
[1736524037104,33.37130369,188.1,187.95,31.81280369]
[1736524037404,1.5585,188.1,187.98,31.81280369]
[1736524037619,2.6579,188.14,188.09,2.6586]
[1736524038038,1.6134,188.17,188.04,31.81280369]
[1736524038196,1.6134,188.17,188.03,6.0]
[1736524038489,31.81280369,188.22,188.07,31.81280369]
[1736524038704,88.00799173,188.32,188.16,31.81280369]
[1736524039091,88.00799173,188.32,188.17,1.6025]
[1736524039297,2.6557,188.31,188.23,2.6567]
[1736524039485,88.00799173,188.32,188.23,2.6567]
[1736524039696,88.00799173,188.32,188.17,1.6025]
[1736524039896,31.81280369,188.27,188.13,31.81280369]
[1736524040488,31.81280369,188.27,188.17,2.6575]
[1736524040489,2.6566,188.24,188.17,2.6575]
[1736524040687,2.6566,188.24,188.11,1.6025]
[1736524040889,31.81280369,188.24,188.11,1.6025]
[1736524041102,1.5397,188.23,188.11,1.6025]
[1736524042393,2.6572,188.19,188.13,2.6581]
[1736524043194,1.5109,188.22,188.13,2.6581]
[1736524043398,2.6571,188.21,188.13,2.6581]
[1736524043703,1.5109,188.22,188.13,2.6581]
[1736524043997,1.5109,188.22,188.16,2.6576]
[1736524044196,1.5397,188.23,188.1,31.81280369]
[1736524044399,31.81280369,188.3,188.16,31.81280369]
[1736524044598,34.85500369,188.33,188.17,1.603]
[1736524044798,3.0422,188.33,188.19,31.81280369]
[1736524045205,3.0422,188.33,188.28,2.6559]
[1736524045791,1.5313,188.33,188.29,2.6558]
[1736524046295,1.6259,188.38,188.31,2.6555]
[1736524046500,1.6259,188.38,188.25,31.81280369]
[1736524046694,31.81280369,188.42,188.28,31.81280369]
[1736524046895,4.2797,188.44,188.37,2.6547]
[1736524047302,1.6259,188.44,188.37,2.6546]
[1736524047598,1.6259,188.44,188.29,1.5153]
[1736524049205,2.6539,188.43,188.36,2.6548]
[1736524049398,1.6259,188.44,188.29,1.5153]
[1736524049798,31.81280369,188.47,188.29,1.5153]
[1736524049998,1.6465,188.46,188.29,1.5153]
[1736524050319,31.81280369,188.44,188.29,1.5153]
[1736524050904,2.6541,188.42,188.35,2.655]
[1736524051101,1.6465,188.46,188.29,1.5153]